bitfinex-derivatives/quotes_SOLF0:USTF0_20250924
["timestamp","ask_amount","ask_price","bid_price","bid_amount"]
[1758700100096,11.9756,210.9,210.81,4.2674]
[1758700100293,1.1858597,210.89,210.81,4.2674]
[1758700100489,7.71,210.9,210.82,7.43]
[1758700100691,1.18584179,210.89,210.82,7.43]
[1758700100890,7.71,210.9,210.82,7.43]
[1758700101096,1.18585074,210.89,210.82,7.43]
[1758700101295,7.71,210.9,210.82,7.43]
[1758700101497,1.18585074,210.89,210.82,7.43]
[1758700101690,1.18586771,210.88,210.82,7.43]
[1758700101900,4.266,210.89,210.82,7.43]
[1758700102401,1.18585074,210.88,210.82,7.43]
[1758700102698,4.266,210.89,210.82,7.43]
[1758700102898,7.71,210.9,210.82,7.43]
[1758700103095,1.18580786,210.89,210.82,7.43]
[1758700103296,4.2654,210.92,210.82,7.43]
[1758700103597,1.18577392,210.91,210.82,7.43]
[1758700103797,1.18577392,210.9,210.82,11.6972]
[1758700103997,1.18577392,210.89,210.82,11.6972]
[1758700104190,7.53,210.9,210.82,11.6972]
[1758700104800,1.18579089,210.89,210.82,11.6972]
[1758700105000,7.53,210.9,210.82,11.6972]
[1758700105201,7.53,210.9,210.82,7.43]
[1758700105202,11.7956,210.9,210.82,7.43]
[1758700105997,4.266,210.88,210.82,7.43]
[1758700106401,67.71557848,210.94,210.8,118.22]
[1758700106402,7.53,210.87,210.8,118.22]
[1758700106902,11.7964,210.87,210.8,118.22]
[1758700107811,4.2666,210.86,210.8,118.22]
[1758700109605,7.53,210.84,210.8,118.22]
[1758700110001,7.53,210.84,210.8,126.1]
[1758700110202,1.37227848,210.88,210.81,7.88]
[1758700110502,1.18593727,210.87,210.81,7.88]
[1758700110806,11.7966,210.86,210.81,7.88]
[1758700111204,7.53,210.85,210.81,7.88]
[1758700112701,7.53,210.89,210.79,12.1478]
[1758700112901,1.18593653,210.88,210.79,12.1478]
[1758700113102,1.18593653,210.87,210.79,12.1478]
[1758700113297,7.53,210.89,210.79,12.1478]
[1758700113605,1.18593653,210.88,210.79,12.1478]
[1758700113807,5.45233653,210.87,210.79,12.1478]
[1758700114006,4.2664,210.87,210.79,12.1478]
[1758700114206,7.53,210.93,210.82,7.88]
[1758700114409,1.1858597,210.92,210.82,7.88]
[1758700114708,1.1858597,210.91,210.82,7.88]
[1758700114906,1.1858597,210.9,210.82,7.88]
[1758700115107,1.1858597,210.89,210.82,7.88]
[1758700115310,1.1858597,210.88,210.82,7.88]
[1758700115510,7.53,210.91,210.82,7.88]
[1758700115711,1.1858597,210.9,210.82,7.88]
[1758700115901,1.1858597,210.89,210.82,12.1472]
[1758700116105,1.1858597,210.88,210.82,12.1472]
[1758700116305,4.2658,210.9,210.84,1.37227848]
[1758700116508,1.18582576,210.89,210.85,7.88]
[1758700116807,11.7958,210.9,210.85,7.88]
[1758700117007,1.18582576,210.89,210.84,1.37227848]
[1758700117207,11.7958,210.9,210.84,9.25227848]
[1758700117805,4.2652,210.92,210.84,9.25227848]
[1758700118203,1.18573664,210.91,210.84,9.25227848]
[1758700118414,4.2652,210.92,210.84,9.25227848]
[1758700118713,1.18573365,210.91,210.84,9.25227848]
[1758700118914,4.2652,210.92,210.84,9.25227848]
[1758700119115,1.18573365,210.91,210.84,9.25227848]
[1758700119315,4.2652,210.92,210.84,9.25227848]
[1758700119512,5.45123365,210.91,210.84,9.25227848]
[1758700119708,4.2655,210.91,210.84,9.25227848]
[1758700120312,1.1857344,210.9,210.84,9.25227848]
[1758700120511,4.265,210.93,210.87,1.37227848]
[1758700120711,8.71573365,210.92,210.87,9.25227848]
[1758700120912,1.18573365,210.91,210.87,9.25227848]
[1758700121115,7.53,210.92,210.87,1.37227848]
[1758700121416,1.1857247,210.91,210.88,7.88]
[1758700121616,11.7953,210.92,210.88,7.88]
[1758700121817,1.1857247,210.91,210.88,7.88]
[1758700122017,11.7953,210.92,210.88,7.88]
[1758700122218,1.18570022,210.91,210.88,7.88]
[1758700122517,11.7953,210.92,210.88,7.88]
[1758700122718,1.1857001,210.91,210.88,7.88]
[1758700122917,11.7953,210.92,210.88,7.88]
[1758700123220,1.1857001,210.91,210.88,7.88]
[1758700123412,11.7953,210.92,210.88,7.88]
[1758700123707,1.1857001,210.91,210.88,7.88]
[1758700123906,11.7953,210.92,210.88,7.88]
[1758700124111,1.1857001,210.91,210.88,7.88]
[1758700124320,11.7953,210.92,210.88,7.88]
[1758700124513,1.1857001,210.91,210.88,7.88]
[1758700124712,11.7948,210.95,210.88,7.88]
[1758700125013,1.18566617,210.94,210.88,7.88]
[1758700125314,8.71566617,210.93,210.86,7.88]
[1758700125519,1.18566617,210.92,210.86,7.88]
[1758700126519,1.18566617,210.92,210.85,7.88]
[1758700127315,11.7951,210.93,210.85,7.88]
[1758700127711,1.18565722,210.92,210.85,7.88]
[1758700128013,11.7951,210.93,210.85,7.88]
[1758700129814,4.2655,210.91,210.85,9.25227848]
[1758700130019,7.53,210.93,210.85,9.25227848]
[1758700130215,16.35521285,210.96,210.85,9.25227848]
[1758700130422,1.18561473,210.95,210.85,9.25227848]
[1758700130622,1.18561473,210.94,210.85,9.25227848]
[1758700130823,9.53306567,210.96,210.85,9.25227848]
[1758700131023,1.18561121,210.95,210.85,9.25227848]
[1758700131218,1.18561121,210.94,210.85,9.25227848]
[1758700131418,4.265,210.93,210.88,1.37227848]
[1758700131820,4.265,210.93,210.89,7.88]
[1758700132121,4.265,210.93,210.88,1.37227848]
[1758700132422,4.2646,210.95,210.89,7.88]
[1758700132726,1.18557729,210.94,210.88,9.25227848]
[1758700132937,4.2646,210.95,210.88,9.25227848]
[1758700140219,4.2642,210.97,210.92,7.61]
[1758700140729,4.2642,210.97,210.9,7.61]
[1758700140918,4.2642,210.97,210.91,1.37227848]
[1758700141121,4.2642,210.97,210.92,7.61]
[1758700141614,4.2642,210.97,210.91,1.37227848]
[1758700141816,4.2642,210.97,210.92,7.61]
[1758700142021,7.67,210.99,210.92,7.61]
[1758700142721,7.67,210.99,210.92,4.2652]
[1758700142922,7.67,210.99,210.93,7.61]
[1758700149128,7.67,211.08,210.96,7.61]
[1758700149329,7.67,211.06,210.96,7.61]
[1758700150236,66.2898,211.11,210.96,7.61]
[1758700150432,7.67,211.1,210.98,7.61]
[1758700150733,7.67,211.1,211.0,7.61]
[1758700151134,7.67,211.1,210.99,82.08]
[1758700151330,7.67,211.1,211.0,7.61]
[1758700151633,7.67,211.1,211.0,50.75]
[1758700151824,66.2948,211.09,211.0,7.61]
[1758700152024,7.67,211.08,211.0,7.61]
[1758700153838,11.9322,211.08,211.0,7.61]
[1758700154135,7.67,211.08,211.0,7.61]
[1758700154542,7.36,211.04,210.97,4.264]
[1758700155237,7.36,211.04,210.98,7.94]
[1758700155738,4.2618,211.09,210.99,4.2637]
[1758700155935,4.2618,211.09,211.0,7.94]
[1758700157434,73.6553,211.09,211.0,7.94]
[1758700157639,7.36,211.09,211.0,7.94]
[1758700158533,7.36,211.13,211.01,7.94]
[1758700159245,4.2615,211.11,211.03,4.2628]
[1758700159436,4.2615,211.11,211.04,7.94]
[1758700160039,4.2618,211.09,211.04,7.94]
[1758700160241,4.2618,211.09,211.0,6.40545708]
[1758700160242,11.6218,211.09,211.01,7.94]
[1758700162340,7.36,211.09,211.01,12.2032]
[1758700162536,7.36,211.09,211.02,7.94]
[1758700162735,7.36,211.15,211.02,7.94]
[1758700163445,21.64175836,211.15,211.02,7.94]
[1758700163831,4.2615,211.11,211.02,12.203]
[1758700164036,4.2615,211.11,211.03,7.62]
[1758700164536,74.2559,211.12,211.03,7.62]
[1758700165847,12.2321,211.08,211.03,7.62]
[1758700166742,12.2321,211.08,211.0,7.62]
[1758700167342,4.2623,211.07,211.0,7.62]
[1758700167938,7.97,211.08,211.0,7.62]
[1758700168137,74.2683,211.08,211.0,7.62]
[1758700169850,12.2327,211.05,211.0,7.62]
[1758700170045,12.2327,211.05,210.97,7.62]
[1758700170848,12.2327,211.05,210.97,11.8842]
[1758700171444,7.97,211.12,211.0,2.14205708]
[1758700171742,7.97,211.12,211.01,7.62]
[1758700172951,7.97,211.12,211.05,7.62]
[1758700174046,4.2617,211.1,211.05,7.62]
[1758700174253,7.97,211.09,211.05,7.62]
[1758700175748,4.2617,211.1,211.05,7.62]
[1758700175948,7.97,211.09,211.05,7.62]
[1758700178147,7.97,211.09,211.03,11.8828]
[1758700178352,4.2612,211.12,211.03,11.8828]
[1758700178650,7.97,211.11,211.03,11.8828]
[1758700181650,7.97,211.11,211.04,7.62]
[1758700183451,7.97,211.11,211.03,4.2628]
[1758700183657,7.97,211.1,210.99,7.62]
[1758700184852,4.2625,211.06,210.99,7.62]
[1758700185062,12.2325,211.06,210.99,7.62]
[1758700190368,12.2325,211.06,210.99,11.58690513]
[1758700191673,4.2627,211.05,210.99,11.58690513]
[1758700192870,4.2627,211.05,211.0,3.96690513]
[1758700193066,7.97,211.04,211.0,7.62]
[1758700193274,7.97,211.04,211.0,11.58690513]
[1758700193871,7.97,211.04,210.99,3.96690513]
[1758700194078,7.97,211.04,211.0,11.91690513]
[1758700194279,66.3086,211.05,210.99,3.96690513]
[1758700194571,7.93,210.99,210.92,3.96690513]
[1758700194772,7.93,210.99,210.91,3.96690513]
[1758700194976,7.93,210.97,210.9,3.96690513]
[1758700195274,7.93,210.97,210.88,11.91690513]
[1758700195471,7.93,210.92,210.88,3.96690513]
[1758700196283,4.265,210.93,210.87,3.96690513]
[1758700196578,4.2654,210.92,210.87,3.96690513]
[1758700196881,7.93,210.93,210.86,3.96690513]
[1758700197078,12.1938,211.0,210.87,7.95]
[1758700197383,12.1938,211.0,210.91,7.95]
[1758700198175,7.93,211.0,210.91,7.95]
[1758700198376,7.93,210.99,210.89,7.95]
[1758700198976,12.1939,210.99,210.89,12.2158]
[1758700199177,12.1939,210.99,210.9,7.95]
[1758700200482,4.2633,211.02,210.91,7.95]
[1758700201282,7.93,210.99,210.92,7.95]
[1758700201471,7.93,210.99,210.88,3.96690513]
[1758700201876,66.333,210.97,210.87,11.91690513]
[1758700202075,66.333,210.97,210.87,7.95]
[1758700202076,7.93,210.96,210.87,7.95]
[1758700202782,4.2648,210.94,210.87,7.95]
[1758700203376,12.1948,210.94,210.87,7.95]
[1758700203979,4.2652,210.93,210.87,7.95]
[1758700204382,7.93,210.94,210.84,7.95]
[1758700204576,7.93,210.91,210.84,7.95]
[1758700204778,4.2659,210.89,210.81,5.33913123]
[1758700205087,7.93,210.88,210.81,3.96690513]
[1758700205287,7.93,210.88,210.81,7.95]
[1758700205484,12.1962,210.88,210.81,7.95]
[1758700207383,7.93,210.88,210.81,7.95]
[1758700208387,4.2663,210.87,210.81,7.95]
[1758700208587,7.93,210.88,210.81,7.95]
[1758700209188,7.93,210.88,210.78,117.88]
[1758700209383,1.3722261,210.86,210.78,117.88]
[1758700209592,7.93,210.85,210.76,344.98]
[1758700210085,66.3643,210.87,210.73,9.3222261]
[1758700210086,7.93,210.82,210.73,9.3222261]
[1758700210294,1.3722261,210.84,210.75,7.95]
[1758700211583,9.3022261,210.86,210.75,4.2686]
[1758700211893,9.3022261,210.86,210.76,9.3222261]
[1758700212085,9.3022261,210.86,210.77,4.2682]
[1758700212794,9.3022261,210.86,210.78,7.95]
[1758700216294,4.2666,210.85,210.78,7.95]
[1758700217892,7.77,210.84,210.78,7.95]
[1758700219198,4.2671,210.83,210.75,1.3722261]
[1758700219590,4.2671,210.83,210.76,7.85]
[1758700221099,7.77,210.84,210.76,7.85]
[1758700221398,7.77,210.84,210.76,12.1184]
[1758700221599,7.77,210.84,210.77,7.85]
[1758700221791,7.77,210.88,210.77,7.85]
[1758700221996,12.036,210.88,210.79,7.85]
[1758700222897,7.77,210.85,210.72,7.85]
[1758700223097,7.77,210.85,210.71,46.4]
[1758700223098,9.1422261,210.85,210.75,7.85]
[1758700224003,7.77,210.85,210.78,7.78]
[1758700226002,12.0368,210.85,210.78,7.78]
[1758700226203,12.0368,210.85,210.71,46.4]
[1758700226204,7.77,210.85,210.76,1.3722261]
[1758700226405,9.1422261,210.85,210.76,1.3722261]
[1758700226600,9.1422261,210.85,210.75,9.1522261]
[1758700227306,9.1422261,210.85,210.75,7.78]
[1758700227307,7.58,210.83,210.75,7.78]
[1758700227609,1.3722261,210.82,210.75,7.78]
[1758700227904,7.58,210.81,210.7,9.1522261]
[1758700228106,7.58,210.81,210.7,127.0322261]
[1758700228306,7.58,210.8,210.7,7.78]
[1758700228610,7.58,210.78,210.7,7.78]
[1758700229802,4.2682,210.77,210.7,7.78]
[1758700232710,7.58,210.78,210.7,12.0496]
[1758700233409,4.2681,210.78,210.7,12.0496]
[1758700233608,7.58,210.77,210.7,7.78]
[1758700234108,7.58,210.75,210.66,7.78]
[1758700234813,7.58,210.75,210.66,125.68]
[1758700235813,4.2691,210.73,210.66,125.68]
[1758700236405,7.58,210.75,210.66,117.9]
[1758700236612,1.3722261,210.78,210.69,7.78]
[1758700237810,1.3722261,210.78,210.69,12.0496]
[1758700238514,5.6404261,210.78,210.69,12.0496]
[1758700240309,4.2685,210.76,210.69,7.78]
[1758700240809,4.2689,210.74,210.68,1.3722261]
[1758700241116,7.58,210.73,210.65,7.78]
[1758700241416,66.4053,210.74,210.63,345.16]
[1758700241617,7.58,210.73,210.63,345.16]
[1758700241910,4.2697,210.7,210.63,345.16]
[1758700242112,7.58,210.69,210.63,345.16]
[1758700242313,7.58,210.69,210.62,118.0]
[1758700242614,4.2701,210.68,210.62,118.0]
[1758700243211,7.58,210.69,210.62,118.0]
[1758700244117,4.2692,210.73,210.63,7.78]
[1758700244811,4.2692,210.73,210.64,4.2708]
[1758700245012,4.2692,210.73,210.65,7.78]
[1758700248312,8.9522261,210.74,210.66,7.78]
[1758700249218,13.2212261,210.74,210.66,7.78]
[1758700249815,4.2692,210.73,210.66,7.78]
[1758700252716,4.2686,210.76,210.66,7.78]
[1758700252917,11.8486,210.76,210.66,7.78]
[1758700253524,4.2688,210.75,210.66,12.0503]
[1758700253719,5.6410261,210.75,210.66,12.0503]
[1758700255419,5.6410261,210.75,210.66,4.2703]
[1758700255621,4.2688,210.75,210.67,9.2022261]
[1758700255821,5.6410261,210.75,210.67,7.83]
[1758700257323,5.6410261,210.75,210.67,9.2022261]
[1758700259027,4.269,210.73,210.67,7.83]
[1758700263634,7.46,210.72,210.64,11.77012763]
[1758700263933,8.8322261,210.72,210.64,7.83]
[1758700264329,7.46,210.68,210.6,7.83]
[1758700264528,1.3722261,210.66,210.6,7.83]
[1758700264725,8.8322261,210.66,210.6,7.83]
[1758700265127,4.271,210.64,210.6,7.83]
[1758700265330,11.731,210.64,210.6,7.83]
[1758700266533,7.46,210.63,210.6,7.83]
[1758700266931,7.46,210.63,210.57,7.83]
[1758700268028,7.46,210.63,210.57,12.1022]
[1758700268231,11.7305,210.66,210.57,12.1022]
[1758700270240,11.7305,210.66,210.57,16.04232763]
[1758700271438,4.2708,210.65,210.57,11.77012763]
[1758700271639,4.2708,210.65,210.58,7.83]
[1758700273336,7.46,210.66,210.58,12.102]
[1758700273533,7.46,210.66,210.58,7.83]
[1758700274440,4.2709,210.64,210.58,7.83]
[1758700275245,11.7305,210.66,210.58,7.83]
[1758700275447,7.46,210.66,210.59,3.98135566]
[1758700275645,7.46,210.66,210.59,7.84]
[1758700276541,4.2701,210.68,210.6,7.84]
[1758700279042,7.52,210.69,210.62,7.84]
[1758700279250,7.52,210.69,210.62,129.44135566]
[1758700279651,7.52,210.69,210.63,4.2709]
[1758700281348,7.52,210.69,210.62,129.44135566]
[1758700284342,7.28,210.67,210.6,3.98135566]
[1758700284548,7.28,210.67,210.6,7.48]
[1758700284858,7.28,210.67,210.61,3.98135566]
[1758700285043,7.28,210.67,210.6,3.98135566]
[1758700285651,7.28,210.65,210.59,3.98135566]
[1758700286049,7.28,210.65,210.57,3.98135566]
[1758700286756,4.2713,210.62,210.57,3.98135566]
[1758700287053,7.28,210.61,210.57,11.46135566]
[1758700287252,7.28,210.61,210.58,7.48]
[1758700288452,4.2713,210.62,210.58,7.48]
[1758700288647,4.2713,210.62,210.57,3.98135566]
[1758700288849,4.2713,210.62,210.58,7.48]
[1758700289049,4.2713,210.62,210.57,3.98135566]
[1758700289244,7.28,210.65,210.58,7.48]
[1758700289456,4.2709,210.64,210.58,7.48]
[1758700290844,4.2709,210.64,210.57,3.98135566]
[1758700291050,7.28,210.63,210.57,3.98135566]
[1758700291548,11.5512,210.63,210.57,3.98135566]
[1758700291754,11.5512,210.63,210.56,11.46135566]
[1758700292151,7.28,210.62,210.54,3.98135566]
[1758700292754,7.28,210.62,210.53,3.98135566]
[1758700292755,9.42953351,210.61,210.53,3.98135566]
[1758700292953,9.42953351,210.61,210.52,3.98135566]
[1758700293161,7.28,210.61,210.53,11.46135566]
[1758700293352,11.5516,210.61,210.53,11.46135566]
[1758700294554,7.28,210.61,210.53,11.46135566]
[1758700294753,7.28,210.61,210.51,411.8966]
[1758700294754,7.28,210.66,210.56,7.48]
[1758700295757,7.28,210.66,210.56,68.18]
[1758700295952,7.28,210.66,210.57,11.46135566]
[1758700297761,11.5507,210.66,210.57,15.73345566]
[1758700299453,7.28,210.66,210.58,4.2719]
[1758700299658,7.28,210.66,210.59,7.48]
[1758700300655,7.28,210.66,210.57,3.98135566]
[1758700300862,7.28,210.64,210.55,3.98135566]
[1758700301064,2.14953351,210.66,210.54,11.46135566]
[1758700301258,7.28,210.64,210.54,11.46135566]
[1758700301458,2.14953351,210.66,210.54,11.46135566]
[1758700301666,7.28,210.61,210.54,7.48]
[1758700302765,4.2719,210.59,210.54,7.48]
[1758700303167,4.2719,210.59,210.53,107.36135566]
[1758700303469,4.2719,210.59,210.54,7.48]
[1758700303866,4.2719,210.59,210.53,107.36135566]
[1758700304063,4.2719,210.59,210.54,7.48]
[1758700304266,7.28,210.61,210.55,11.46135566]
[1758700306160,4.2709,210.64,210.55,11.46135566]
[1758700306360,4.2709,210.64,210.58,7.48]
[1758700307370,7.28,210.65,210.58,7.48]
[1758700307672,7.28,210.65,210.58,11.46135566]
[1758700308162,7.28,210.65,210.59,3.98135566]
[1758700309569,7.28,210.65,210.58,11.46135566]
[1758700309869,4.2709,210.64,210.58,11.46135566]
[1758700310873,7.28,210.65,210.58,11.46135566]
[1758700312267,4.2709,210.64,210.58,11.46135566]
[1758700318078,7.28,210.65,210.58,11.46135566]
[1758700318279,7.41,210.65,210.58,3.98135566]
[1758700318481,7.41,210.63,210.56,3.98135566]
[1758700318772,4.2715,210.61,210.56,3.98135566]
[1758700318978,7.41,210.63,210.54,3.98135566]
[1758700319181,7.41,210.61,210.54,3.98135566]
[1758700319572,1.18740947,210.6,210.52,3.98135566]
[1758700319772,7.41,210.59,210.52,3.98135566]
[1758700320272,66.4615,210.56,210.52,3.98135566]
[1758700320473,7.41,210.55,210.48,3.98135566]
[1758700320771,4.2735,210.51,210.48,3.98135566]
[1758700320980,7.41,210.5,210.47,3.98135566]
[1758700321177,7.41,210.5,210.47,11.76135566]
[1758700321375,11.6825,210.57,210.49,3.98135566]
[1758700321579,11.6825,210.57,210.49,11.76135566]
[1758700321876,11.6825,210.57,210.5,3.98135566]
[1758700322081,7.41,210.57,210.5,3.98135566]
[1758700322281,7.41,210.57,210.51,3.98135566]
[1758700322681,9.55953351,210.61,210.52,11.76135566]
[1758700322884,9.55953351,210.61,210.53,3.98135566]
[1758700323074,7.41,210.61,210.53,3.98135566]
[1758700323272,7.41,210.61,210.54,7.78]
[1758700323780,7.41,210.61,210.54,11.76135566]
[1758700326284,7.41,210.61,210.55,3.98135566]
[1758700327272,7.41,210.67,210.56,3.98135566]
[1758700327472,1.18725737,210.66,210.57,11.58135566]
[1758700327677,1.18725737,210.65,210.57,11.58135566]
[1758700327882,7.41,210.67,210.57,11.58135566]
[1758700328082,1.18715462,210.66,210.57,11.58135566]
[1758700328282,1.18715462,210.65,210.57,11.58135566]
[1758700328483,4.2705,210.66,210.57,11.58135566]
[1758700328681,1.18715462,210.65,210.57,11.58135566]
[1758700328874,4.2705,210.66,210.57,11.58135566]
[1758700329078,1.18715425,210.65,210.57,11.58135566]
[1758700329286,4.2705,210.66,210.58,3.98135566]
[1758700329481,1.18714493,210.65,210.58,3.98135566]
[1758700329686,4.2705,210.66,210.58,3.98135566]
[1758700329878,1.18714456,210.65,210.58,3.98135566]
[1758700330079,4.2705,210.66,210.58,3.98135566]
[1758700330385,1.18714456,210.65,210.58,3.98135566]
[1758700330687,4.2705,210.66,210.58,3.98135566]
[1758700330881,1.18714456,210.65,210.58,3.98135566]
[1758700331188,4.2705,210.66,210.58,3.98135566]
[1758700331482,1.18714438,210.65,210.58,3.98135566]
[1758700331681,8.7854512,210.67,210.59,11.58135566]
[1758700331884,1.187101,210.66,210.59,11.58135566]
[1758700332086,8.7854512,210.67,210.59,11.58135566]
[1758700332288,1.18710118,210.66,210.59,11.58135566]
[1758700332586,13.0557512,210.67,210.59,11.58135566]
[1758700332785,1.18710114,210.66,210.59,11.58135566]
[1758700332989,13.0557512,210.67,210.59,11.58135566]
[1758700333288,1.18710095,210.66,210.59,11.58135566]
[1758700333590,13.0557512,210.67,210.59,11.58135566]
[1758700333784,1.18710114,210.66,210.59,11.58135566]
[1758700333985,13.0557512,210.67,210.59,11.58135566]
[1758700334182,1.18710114,210.66,210.59,11.58135566]
[1758700334384,11.6803,210.67,210.59,11.58135566]
[1758700334584,1.18710059,210.66,210.59,11.58135566]
[1758700334779,11.6803,210.67,210.59,11.58135566]
[1758700334987,1.18710132,210.66,210.59,11.58135566]
[1758700335283,11.6803,210.67,210.59,11.58135566]
[1758700335489,1.18710077,210.66,210.59,11.58135566]
[1758700335685,11.6803,210.67,210.59,11.58135566]
[1758700335879,1.18710095,210.66,210.59,11.58135566]
[1758700336090,11.6803,210.67,210.59,11.58135566]
[1758700336283,1.18710077,210.66,210.6,7.6]
[1758700336479,11.6803,210.67,210.6,7.6]
[1758700336678,1.18710077,210.66,210.6,7.6]
[1758700336886,11.6803,210.67,210.6,7.6]
[1758700337089,1.18710077,210.66,210.6,7.6]
[1758700337288,11.6803,210.67,210.6,7.6]
[1758700337486,1.18710077,210.66,210.6,7.6]
[1758700337680,7.41,210.67,210.6,7.6]
[1758700337886,1.18706671,210.66,210.6,7.6]
[1758700338185,7.41,210.67,210.6,7.6]
[1758700338387,1.18706708,210.66,210.6,7.6]
[1758700338586,11.6803,210.67,210.6,7.6]
[1758700338785,1.18706689,210.66,210.6,7.6]
[1758700338987,7.41,210.67,210.6,7.6]
[1758700339188,1.18711798,210.66,210.6,7.6]
[1758700339387,7.41,210.67,210.6,7.6]
[1758700339589,2.56251828,210.66,210.6,7.6]
[1758700339787,9.07715223,210.65,210.59,3.98135566]
[1758700339990,7.89,210.65,210.59,3.98135566]
[1758700340187,1.18718753,210.64,210.57,76.80135566]
[1758700340389,7.89,210.65,210.57,76.80135566]
[1758700340581,1.18718827,210.64,210.57,76.80135566]
[1758700340789,7.89,210.65,210.57,76.80135566]
[1758700341090,1.1871879,210.64,210.57,76.80135566]
[1758700341293,7.89,210.65,210.57,76.80135566]
[1758700341492,1.1871879,210.64,210.57,76.80135566]
[1758700341691,7.89,210.65,210.57,76.80135566]
[1758700341892,5.4581879,210.64,210.57,76.80135566]
[1758700342093,4.271,210.64,210.57,76.80135566]
[1758700342693,7.89,210.61,210.57,76.80135566]
[1758700343095,7.89,210.61,210.57,72.82]
[1758700343293,7.89,210.61,210.57,69.20135566]
[1758700343497,7.89,210.61,210.58,7.56]
[1758700345092,11.7508,210.65,210.58,7.56]
[1758700345292,1.18718772,210.64,210.58,7.56]
[1758700345496,11.7508,210.65,210.58,7.56]
[1758700345799,1.1871879,210.64,210.58,7.56]
[1758700346000,11.7508,210.65,210.58,7.56]
[1758700346299,5.4581879,210.64,210.58,7.56]
[1758700346500,4.271,210.64,210.58,7.56]
[1758700347698,4.271,210.64,210.58,11.54135566]
[1758700349602,4.271,210.64,210.57,65.22]
[1758700349603,8.8554512,210.7,210.61,7.56]
[1758700349792,1.18706781,210.69,210.61,7.56]
[1758700349997,1.18706781,210.68,210.61,7.56]
[1758700350199,1.18706781,210.67,210.61,7.56]
[1758700350499,1.18706781,210.66,210.6,3.98135566]
[1758700350697,8.8554512,210.7,210.61,7.56]
[1758700351005,1.18706671,210.69,210.61,7.56]
[1758700351204,1.18706671,210.68,210.61,7.56]
[1758700351404,1.18706671,210.67,210.61,7.56]
[1758700352998,1.18706671,210.67,210.62,7.56]
[1758700353197,1.3754512,210.7,210.62,7.56]
[1758700353502,1.1870142,210.69,210.62,7.56]
[1758700353702,1.1870142,210.68,210.62,7.56]
[1758700353906,1.1870142,210.67,210.63,7.56]
[1758700354105,8.8554512,210.7,210.63,7.56]
[1758700354305,1.18701457,210.69,210.63,7.56]
[1758700354504,1.3754512,210.7,210.57,65.22]
[1758700354505,1.3754512,210.67,210.6,7.56]
[1758700354706,1.18701457,210.66,210.6,7.56]
[1758700354905,5.45751457,210.66,210.6,7.56]
[1758700355099,4.2705,210.66,210.6,7.56]
[1758700358912,1.18710132,210.65,210.59,11.54135566]
[1758700359105,11.7505,210.66,210.59,11.54135566]
[1758700359596,1.3754512,210.64,210.58,3.98135566]
[1758700360004,4.2713,210.62,210.57,65.22]
[1758700360308,11.7513,210.62,210.58,7.56]
[1758700360610,7.48,210.61,210.58,7.56]
[1758700361608,4.2713,210.62,210.57,65.22]
[1758700361809,7.48,210.6,210.57,65.22]
[1758700363212,7.48,210.6,210.54,11.54135566]
[1758700363408,7.48,210.6,210.55,3.98135566]
[1758700364315,7.48,210.6,210.56,7.56]
[1758700364611,7.48,210.6,210.55,3.98135566]